bitfinex-derivatives/quotes_BNBF0:USTF0_20230901
["timestamp","ask_amount","ask_price","bid_price","bid_amount"]
[1693576323586,0.0749793,213.79,211.63,1.71002553]
[1693576323886,0.0749793,213.82,211.63,1.71002553]
[1693576325288,0.0749793,213.81,211.63,1.71002553]
[1693576325586,0.0749793,213.82,211.63,1.71002553]
[1693576326788,0.0749793,213.83,211.63,1.71002553]
[1693576327186,0.0749793,213.84,211.65,1.71002553]
[1693576331492,0.0749793,213.85,211.65,1.71002553]
[1693576332286,0.0749793,213.84,211.65,1.71002553]
[1693576332786,0.0749793,213.85,211.65,1.71002553]
[1693576332992,0.0749793,213.86,211.65,1.71002553]
[1693576333590,0.0749793,213.87,211.65,1.71002553]
[1693576333791,0.0749793,213.86,211.65,1.71002553]
[1693576334394,0.0749793,213.87,211.65,1.71002553]
[1693576334591,0.0749793,213.88,211.65,1.71002553]
[1693576334992,0.0749793,213.89,211.65,1.71002553]
[1693576335494,0.0749793,213.91,211.65,1.71002553]
[1693576336694,0.0749793,213.93,211.68,1.71002553]
[1693576336890,0.0749793,213.94,211.68,1.71002553]
[1693576338691,0.0749793,213.95,211.68,1.71002553]
[1693576340898,0.0749793,213.93,211.68,1.71002553]
[1693576341197,0.0749793,213.94,211.68,1.71002553]
[1693576342094,0.0749793,213.94,211.67,1.71002553]
[1693576344098,0.0749793,213.93,211.67,1.71002553]
[1693576344601,0.0749793,213.94,211.67,1.71002553]
[1693576344902,0.0749793,213.93,211.67,1.71002553]
[1693576345802,0.0749793,213.94,211.67,1.71002553]
[1693576345999,0.0749793,213.93,211.67,1.71002553]
[1693576347399,0.0749793,213.94,211.67,1.71002553]
[1693576348100,0.0749793,213.93,211.67,1.71002553]
[1693576348301,0.0749793,213.94,211.67,1.71002553]
[1693576349911,0.0749793,213.93,211.67,1.71002553]
[1693576352707,0.0749793,213.93,211.66,1.71002553]
[1693576354511,0.0749793,213.94,211.66,1.71002553]
[1693576362118,0.0749793,213.95,211.66,1.71002553]
[1693576362518,0.0749793,213.94,211.66,1.71002553]
[1693576363720,0.0749793,213.94,211.67,1.71002553]
[1693576365619,0.0749793,213.95,211.67,1.71002553]
[1693576367320,0.0749793,213.94,211.67,1.71002553]
[1693576368921,0.0749793,213.94,211.66,1.71002553]
[1693576370920,0.0749793,213.93,211.66,1.71002553]
[1693576373920,0.0749793,213.92,211.66,1.71002553]
[1693576382032,0.0749793,213.93,211.66,1.71002553]
[1693576382535,0.0749793,213.92,211.66,1.71002553]
[1693576392136,0.0749793,213.91,211.66,1.71002553]
[1693576392641,0.0749793,213.89,211.66,1.71002553]
[1693576392940,0.0749793,213.88,211.66,1.71002553]
[1693576394543,0.0749793,213.89,211.66,1.71002553]
[1693576394844,0.0749793,213.9,211.66,1.71002553]
[1693576396638,0.0749793,213.91,211.66,1.71002553]
[1693576397639,0.0749793,213.91,211.61,1.71002553]
[1693576398545,0.0749793,213.92,211.61,1.71002553]
[1693576398942,0.0749793,213.96,211.61,1.71002553]
[1693576399145,0.0749793,213.97,211.61,1.71002553]
[1693576403652,0.0749793,213.97,211.68,1.71002553]
[1693576405352,0.0749793,213.99,211.68,1.71002553]
[1693576410657,0.0749793,214.01,211.68,1.71002553]
[1693576413266,0.0749793,214.0,211.68,1.71002553]
[1693576413761,0.0749793,213.99,211.68,1.71002553]
[1693576414666,0.0749793,213.99,211.67,1.71002553]
[1693576416467,0.0749793,213.98,211.67,1.71002553]
[1693576417662,0.0749793,213.99,211.67,1.71002553]
[1693576428180,0.0749793,213.98,211.67,1.71002553]
[1693576429779,0.0749793,213.97,210.62,0.43415671]
[1693576430974,0.0749793,213.96,211.67,1.71763651]
[1693576431581,0.0749793,213.97,211.67,1.71763651]
[1693576432380,0.0749793,213.96,211.67,1.71763651]
[1693576432580,0.0749793,213.95,211.67,1.71763651]
[1693576433777,0.0749793,213.94,211.67,1.71763651]
[1693576433976,0.0749793,213.93,211.67,1.71763651]
[1693576435881,0.0749793,213.93,211.66,1.71763651]
[1693576439882,0.0749793,213.94,211.66,1.71763651]
[1693576440882,0.0749793,213.94,211.67,1.71763651]
[1693576442379,0.0749793,213.95,211.67,1.71763651]
[1693576442582,0.0749793,213.94,211.67,1.71763651]
[1693576446087,0.0749793,213.93,211.67,1.71763651]
[1693576446286,0.0749793,213.94,211.67,1.71763651]
[1693576446687,0.0749793,213.93,211.67,1.71763651]
[1693576446887,0.0749793,213.94,211.67,1.71763651]
[1693576447082,0.0749793,213.93,211.67,1.71763651]
[1693576449588,0.0749793,213.92,211.67,1.71763651]
[1693576449788,0.0749793,213.93,211.67,1.71763651]
[1693576453690,0.0749793,213.94,211.67,1.71763651]
[1693576454992,0.0749793,213.95,211.67,1.71763651]
[1693576455195,0.0749793,213.95,213.9,2.0]
[1693576455686,0.0749793,213.94,213.9,2.0]
[1693576456194,0.0749793,213.95,213.9,2.0]
[1693576456393,0.0749793,213.94,213.9,2.0]
[1693576456791,0.0749793,213.95,213.9,2.0]
[1693576461394,0.0749793,213.96,213.9,2.0]
[1693576463998,0.0749793,213.97,213.9,2.0]
[1693576464194,0.0749793,213.96,213.9,2.0]
[1693576467199,0.0749793,214.01,213.9,2.0]
[1693576467396,0.0749793,214.02,213.9,2.0]
[1693576467596,0.0749793,214.03,213.9,2.0]
[1693576468003,0.0749793,214.02,213.9,2.0]
[1693576468299,0.0749793,214.0,213.9,2.0]
[1693576468598,0.0749793,213.99,213.9,2.0]
[1693576469798,0.0749793,213.98,213.9,2.0]
[1693576471900,0.0749793,213.99,213.9,2.0]
[1693576472403,0.0749793,214.0,213.9,2.0]
[1693576472903,0.0749793,213.99,213.9,2.0]
[1693576477304,0.0749793,214.0,213.9,2.0]
[1693576479608,0.0749793,214.01,213.9,2.0]
[1693576480108,0.0749793,214.0,213.9,2.0]
[1693576480307,0.0749793,214.01,213.9,2.0]
[1693576484512,0.0749793,214.0,213.9,2.0]
[1693576489414,0.0749793,213.99,213.9,2.0]
[1693576492522,0.0749793,213.98,213.9,2.0]
[1693576493115,0.0749793,213.99,213.9,2.0]
[1693576493623,0.0749793,213.98,213.9,2.0]
[1693576495623,0.0749793,213.97,213.9,2.0]
[1693576496019,0.0749793,213.98,213.9,2.0]
[1693576496522,0.0749793,213.97,213.9,2.0]
[1693576496725,0.0749793,213.98,213.9,2.0]
[1693576498125,0.0749793,213.99,213.9,2.0]
[1693576501023,0.9997241,214.07,213.9,2.0]
[1693576501024,0.0749793,214.0,213.9,2.0]
[1693576503025,0.0749793,213.98,213.9,2.0]
[1693576506126,0.0749793,213.97,213.9,2.0]
[1693576507632,0.0749793,213.98,213.9,2.0]
[1693576508034,0.0749793,214.02,213.9,2.0]
[1693576508227,0.0749793,214.04,213.9,2.0]
[1693576508432,0.0749793,214.05,213.9,2.0]
[1693576509028,0.0749793,214.06,213.9,2.0]
[1693576509333,0.0749793,214.09,213.9,2.0]
[1693576510031,0.0749793,214.1,213.9,2.0]
[1693576511233,0.0749793,214.11,213.9,2.0]
[1693576511430,0.0749793,214.15,213.9,2.0]
[1693576512434,0.0749793,214.13,213.9,2.0]
[1693576512636,0.0749793,214.14,213.9,2.0]
[1693576513433,0.0749793,214.12,213.9,2.0]
[1693576515536,0.0749793,214.11,213.9,2.0]
[1693576516535,0.0749793,214.09,213.9,2.0]
[1693576518036,0.0749793,214.1,213.9,2.0]
[1693576518631,0.0749793,214.09,213.9,2.0]
[1693576519432,0.0749793,214.08,213.9,2.0]
[1693576519737,0.0749793,214.07,213.9,2.0]
[1693576519936,0.0749793,214.08,213.9,2.0]
[1693576520636,0.0749793,214.06,213.9,2.0]
[1693576522436,0.0749793,214.05,213.9,2.0]
[1693576523136,0.0749793,214.06,213.9,2.0]
[1693576524937,0.0749793,214.07,213.9,2.0]
[1693576529848,0.0749793,214.06,213.9,2.0]
[1693576531840,0.15160856,214.08,213.9,2.0]
[1693576531841,0.0749793,214.05,213.9,2.0]
[1693576532939,0.0749793,214.04,213.9,2.0]
[1693576534942,0.0749793,214.03,213.9,2.0]
[1693576536443,0.0749793,214.02,213.9,2.0]
[1693576537243,0.0749793,214.01,213.9,2.0]
[1693576538444,0.0749793,214.0,213.9,2.0]
[1693576539444,0.0749793,213.99,213.9,2.0]
[1693576540545,0.0749793,213.97,213.9,2.0]
[1693576540845,0.0749793,213.98,213.9,2.0]
[1693576541445,0.0749793,213.95,213.9,2.0]
[1693576542748,0.15160856,213.93,213.9,2.0]
[1693576543548,0.07591075,213.91,213.9,2.0]
[1693576544553,0.15160856,213.91,213.9,2.0]
[1693576545652,0.49986205,213.91,213.9,2.0]
[1693576552060,0.9997241,213.93,213.9,2.0]
[1693576552363,0.9997241,213.92,213.9,2.0]
[1693576552565,0.9997241,213.93,213.9,2.0]
[1693576553961,0.50741267,213.91,213.9,2.0]
[1693576556866,0.15222984,213.91,213.9,2.0]
[1693576557761,0.07611607,213.91,213.9,2.0]
[1693576558270,0.07611607,213.92,213.9,2.0]
[1693576559867,0.07611607,213.95,213.9,2.0]
[1693576561868,0.07611607,213.94,213.9,2.0]
[1693576562270,0.07611607,213.95,213.9,2.0]
[1693576562472,0.07611607,213.97,213.9,2.0]
[1693576563469,0.07611607,214.0,213.9,2.0]
[1693576565567,0.07611607,214.03,213.9,2.0]
[1693576566468,0.07611607,214.08,213.9,2.0]
[1693576566868,0.07611607,214.09,213.9,2.0]
[1693576567174,0.07611607,214.04,213.9,2.0]
[1693576567367,0.07611607,214.03,213.9,2.0]
[1693576567568,0.07611607,214.07,213.9,2.0]
[1693576568067,0.07611607,214.09,213.9,2.0]
[1693576569071,0.07611607,214.1,213.9,2.0]
[1693576569873,0.07611607,214.09,213.9,2.0]
[1693576570374,0.07611607,214.1,213.9,2.0]
[1693576570969,0.07611607,214.11,213.9,2.0]
[1693576571477,0.07611607,214.12,213.9,2.0]
[1693576571675,0.07611607,214.11,213.9,2.0]
[1693576572073,0.07611607,214.12,213.9,2.0]
[1693576572271,0.07611607,214.11,213.9,2.0]
[1693576572576,0.07611607,214.12,213.9,2.0]
[1693576572976,0.07611607,214.11,213.9,2.0]
[1693576573976,0.07611607,214.12,213.9,2.0]
[1693576576473,0.07611607,214.13,213.9,2.0]
[1693576579178,0.07611607,214.12,213.9,2.0]
[1693576583977,0.07611607,214.11,213.9,2.0]
[1693576586384,0.07611607,214.1,213.9,2.0]
[1693576587484,0.07611607,214.11,213.9,2.0]
[1693576587988,0.07611607,214.1,213.9,2.0]
[1693576590490,0.07611607,214.09,213.9,2.0]
[1693576590890,0.07611607,214.1,213.9,2.0]
[1693576591085,0.07611607,214.09,213.9,2.0]
[1693576594496,0.07611607,214.08,213.9,2.0]
[1693576596194,0.07611607,214.09,213.9,2.0]
[1693576596594,0.07611607,214.08,213.9,2.0]
[1693576597395,0.07611607,214.09,213.9,2.0]
[1693576597591,0.07611607,214.08,213.9,2.0]
[1693576597796,0.07611607,214.09,213.9,2.0]
[1693576597995,0.07611607,214.08,213.9,2.0]
[1693576598198,0.07611607,214.09,213.9,2.0]
[1693576598897,0.07611607,214.08,213.9,2.0]
[1693576599995,0.07611607,214.07,213.9,2.0]
[1693576602403,0.07611607,214.04,213.9,2.0]
[1693576602701,0.07611607,214.05,213.9,2.0]
[1693576602902,0.07611607,214.04,213.9,2.0]
[1693576604102,0.07611607,214.05,213.9,2.0]
[1693576608008,0.07611607,214.06,213.9,2.0]
[1693576608907,0.07611607,214.11,213.9,2.0]
[1693576609110,0.07611607,214.13,213.9,2.0]
[1693576611015,0.07611607,214.14,213.9,2.0]
[1693576611813,0.07611607,214.15,213.9,2.0]
[1693576612107,2.49931027,214.28,213.9,2.0]
[1693576612312,0.07596892,214.15,213.9,2.0]
[1693576614518,0.07596892,214.16,213.9,2.0]
[1693576616117,0.07596892,214.17,213.9,2.0]
[1693576616617,0.15193784,214.19,213.9,2.0]
[1693576616618,0.07596892,214.18,213.9,2.0]
[1693576618019,0.07596892,214.17,213.9,2.0]
[1693576622629,0.07596892,214.18,213.9,2.0]
[1693576623527,0.07596892,214.17,213.9,2.0]
[1693576623926,0.07596892,214.18,213.9,2.0]
[1693576624127,0.07596892,214.17,213.9,2.0]
[1693576627529,0.07596892,214.16,213.9,2.0]
[1693576629533,0.07596892,214.15,213.9,2.0]
[1693576630330,0.07596892,214.14,213.9,2.0]
[1693576632831,0.07596892,214.13,213.9,2.0]
[1693576633729,0.07596892,214.14,213.9,2.0]
[1693576634624,0.07596892,214.13,213.9,2.0]
[1693576637535,0.07596892,214.12,213.9,2.0]
[1693576640131,0.07596892,214.11,213.9,2.0]
[1693576641136,0.07596892,214.1,213.9,2.0]
[1693576642036,0.07596892,214.09,213.9,2.0]
[1693576643032,0.07596892,214.07,213.9,2.0]
[1693576644132,0.07596892,214.06,213.9,2.0]
[1693576644938,0.07596892,214.07,213.9,2.0]
[1693576645639,0.07596892,214.06,213.9,2.0]
[1693576645840,0.07596892,214.07,213.9,2.0]
[1693576646141,0.07596892,214.06,213.9,2.0]
[1693576647741,2.53229746,214.2,213.9,2.0]
[1693576648043,0.07613285,214.07,213.9,2.0]
[1693576650036,0.07613285,214.06,213.9,2.0]
[1693576650239,0.07613285,214.07,213.9,2.0]
[1693576651544,0.07613285,214.08,213.9,2.0]
[1693576653343,0.07613285,214.09,213.9,2.0]
[1693576653644,0.07613285,214.08,213.9,2.0]
[1693576654040,0.07613285,214.09,213.9,2.0]
[1693576655037,0.07613285,214.1,213.9,2.0]
[1693576655242,0.07613285,214.09,213.9,2.0]
[1693576655643,0.07613285,214.1,213.9,2.0]
[1693576656645,0.07613285,214.11,213.9,2.0]
[1693576657639,0.07613285,214.1,213.9,2.0]
[1693576657839,0.07613285,214.11,213.9,2.0]
[1693576659039,0.07613285,214.12,213.9,2.0]
[1693576660541,0.07613285,214.13,213.9,2.0]
[1693576660744,0.07613285,214.12,213.9,2.0]
[1693576661047,0.07613285,214.13,213.9,2.0]
[1693576662044,0.07613285,214.14,213.9,2.0]
[1693576663947,0.07613285,214.15,213.9,2.0]
[1693576664446,0.07613285,214.16,213.9,2.0]
[1693576665448,0.07613285,214.17,213.9,2.0]
[1693576667751,0.07613285,214.16,213.9,2.0]
[1693576671056,0.07613285,214.17,213.9,2.0]
[1693576671756,0.07613285,214.16,213.9,2.0]
[1693576677862,0.07613285,214.23,213.9,2.0]
[1693576678058,0.07613285,214.25,213.9,2.0]
[1693576679264,0.07613285,214.29,213.9,2.0]
[1693576679458,0.07613285,214.3,213.9,2.0]
[1693576680964,0.07613285,214.31,213.9,2.0]
[1693576681359,0.07613285,214.32,213.9,2.0]
[1693576681564,2.53776173,214.45,213.9,2.0]
[1693576681565,0.07613285,214.35,213.9,2.0]
[1693576681866,0.07613285,214.37,213.9,2.0]
[1693576683668,0.07613285,214.34,213.9,2.0]
[1693576684465,0.1522657,214.37,213.9,2.0]
[1693576684466,0.07613285,214.35,213.9,2.0]
[1693576684662,0.07613285,214.34,213.9,2.0]
[1693576684862,0.07613285,214.35,213.9,2.0]
[1693576685464,0.07613285,214.33,213.9,2.0]
[1693576686669,0.07613285,214.31,213.9,2.0]
[1693576688164,0.07613285,214.32,213.9,2.0]
[1693576688565,0.07613285,214.31,213.9,2.0]
[1693576689373,0.07613285,214.3,213.9,2.0]
[1693576689869,0.07613285,214.29,213.9,2.0]
[1693576691575,0.07613285,214.3,213.9,2.0]
[1693576692376,0.07613285,214.31,213.9,2.0]
[1693576694771,0.07613285,214.34,213.9,2.0]
[1693576694976,0.07613285,214.39,213.9,2.0]
[1693576695573,0.07613285,214.41,213.9,2.0]
[1693576695977,0.07613285,214.4,213.9,2.0]
[1693576696672,0.07613285,214.41,213.9,2.0]
[1693576697681,0.07613285,214.42,213.9,2.0]
[1693576697881,0.07613285,214.43,213.9,2.0]
[1693576698581,0.07613285,214.44,213.9,2.0]
[1693576698979,0.07613285,214.43,213.9,2.0]
[1693576699576,0.07613285,214.44,213.9,2.0]
[1693576705583,0.07613285,214.43,213.9,2.0]
[1693576707485,0.07613285,214.42,213.9,2.0]
[1693576708390,0.07613285,214.4,213.9,2.0]
[1693576708989,0.07613285,214.41,213.9,2.0]
[1693576709589,0.07613285,214.38,213.9,2.0]
[1693576711387,0.1522657,214.4,213.9,2.0]
[1693576711388,0.07613285,214.41,213.9,2.0]
[1693576711593,0.07613285,214.43,213.9,2.0]
[1693576712186,0.07613285,214.42,213.9,2.0]
[1693576712388,0.07613285,214.38,213.9,2.0]
[1693576712693,0.07613285,214.39,213.9,2.0]
[1693576714396,0.07613285,214.37,213.9,2.0]
[1693576714592,0.07613285,214.38,213.9,2.0]
[1693576715599,0.07613285,214.39,213.9,2.0]
[1693576720304,0.07613285,214.4,213.9,2.0]
[1693576720503,0.07613285,214.39,213.9,2.0]
[1693576721203,0.07613285,214.4,213.9,2.0]
[1693576721504,0.07613285,214.39,213.9,2.0]
[1693576722906,0.07613285,214.4,213.9,2.0]
[1693576723106,0.07613285,214.39,213.9,2.0]
[1693576723408,0.07613285,214.4,213.9,2.0]
[1693576723605,0.07613285,214.39,213.9,2.0]
[1693576726408,0.07613285,214.38,213.9,2.0]
[1693576727305,0.07613285,214.39,213.9,2.0]
[1693576727509,0.07613285,214.38,213.9,2.0]
[1693576728310,0.07613285,214.43,213.9,2.0]
[1693576728505,0.07613285,214.44,213.9,2.0]
[1693576729511,0.07613285,214.45,213.9,2.0]
[1693576729711,0.07613285,214.47,213.9,2.0]
[1693576730813,0.07613285,214.48,213.9,2.0]
[1693576731010,0.07613285,214.49,213.9,2.0]
[1693576731212,0.07613285,214.5,213.9,2.0]
[1693576731609,0.07613285,214.52,213.9,2.0]
[1693576731808,0.07613285,214.57,213.9,2.0]
[1693576732615,0.07613285,214.6,213.9,2.0]
[1693576734409,0.07613285,214.59,213.9,2.0]
[1693576734609,0.07613285,214.61,213.9,2.0]
[1693576734909,0.07613285,214.62,213.9,2.0]
[1693576735113,0.07613285,214.61,213.9,2.0]
[1693576735313,0.07613285,214.62,213.9,2.0]
[1693576735814,0.07613285,214.65,213.9,2.0]
[1693576737117,0.07613285,214.66,213.9,2.0]
[1693576737618,0.07613285,214.67,213.9,2.0]
[1693576738517,0.07613285,214.68,213.9,2.0]
[1693576738718,2.53776173,214.81,213.9,2.0]
[1693576738719,0.07613285,214.69,213.9,2.0]
[1693576739516,0.07613285,214.68,213.9,2.0]
[1693576740516,0.07613285,214.67,213.9,2.0]
[1693576741617,0.07613285,214.66,213.9,2.0]
[1693576742421,0.07613285,214.61,213.9,2.0]
[1693576742621,0.07613285,214.6,213.9,2.0]
[1693576743219,0.07613285,214.59,213.9,2.0]
[1693576743420,0.07613285,214.6,213.9,2.0]
[1693576743619,0.07613285,214.59,213.9,2.0]
[1693576743820,0.07613285,214.58,213.9,2.0]
[1693576744320,0.07613285,214.57,213.9,2.0]
[1693576744622,0.07613285,214.56,213.9,2.0]
[1693576745023,0.07613285,214.51,213.9,2.0]
[1693576745223,0.07613285,214.5,213.9,2.0]
[1693576746523,0.07613285,214.49,213.9,2.0]
[1693576746724,0.07613285,214.5,213.9,2.0]
[1693576746916,0.07613285,214.49,213.9,2.0]
[1693576748518,0.07613285,214.48,213.9,2.0]
[1693576750519,0.07613285,214.47,213.9,2.0]
[1693576753627,0.07613285,214.46,213.9,2.0]
[1693576755028,0.07613285,214.45,213.9,2.0]
[1693576757828,0.07613285,214.44,213.9,2.0]
[1693576759031,0.07613285,214.5,213.9,2.0]
[1693576759235,0.1522657,214.52,213.9,2.0]
[1693576759236,0.07613285,214.52,213.9,2.0]
[1693576759628,0.07613285,214.59,213.9,2.0]
[1693576760134,0.07613285,214.61,213.9,2.0]
[1693576760334,0.07613285,214.6,213.9,2.0]
[1693576761029,0.07613285,214.61,213.9,2.0]
[1693576761228,0.07613285,214.6,213.9,2.0]
[1693576761628,0.07613285,214.61,213.9,2.0]
[1693576762429,0.07613285,214.6,213.9,2.0]
[1693576762835,0.07613285,214.61,213.9,2.0]
[1693576763931,1.01510469,214.69,213.9,2.0]
[1693576763932,5.13276699,214.98,213.9,2.0]
[1693576764137,0.07563379,214.61,213.9,2.0]
[1693576765740,0.07563379,214.62,213.9,2.0]
[1693576766335,0.07270535,214.62,213.9,2.0]
[1693576766842,0.15126759,214.65,213.9,2.0]
[1693576767141,0.15126759,214.64,213.9,2.0]
[1693576775246,0.15126759,214.6,213.9,2.0]
[1693576775452,0.15126759,214.59,213.9,2.0]
[1693576776152,0.15126759,214.58,213.9,2.0]
[1693576776943,0.15126759,214.57,213.9,2.0]
[1693576777550,0.15126759,214.58,213.9,2.0]
[1693576778248,0.15126759,214.57,213.9,2.0]
[1693576779052,0.15126759,214.58,213.9,2.0]
[1693576779854,0.15126759,214.57,213.9,2.0]
[1693576782957,0.15126759,214.56,213.9,2.0]
[1693576784853,0.15126759,214.55,213.9,2.0]
[1693576785758,0.15126759,214.54,213.9,2.0]
[1693576785954,0.15126759,214.53,213.9,2.0]
[1693576786554,0.15126759,214.55,213.9,2.0]
[1693576787461,0.15126759,214.57,213.9,2.0]
[1693576787853,0.15126759,214.56,213.9,2.0]
[1693576788660,0.15126759,214.57,213.9,2.0]
[1693576788862,0.15126759,214.56,213.9,2.0]
[1693576789862,0.15126759,214.55,213.9,2.0]
[1693576790763,0.15126759,214.56,213.9,2.0]
[1693576791863,0.15126759,214.54,213.9,2.0]
[1693576792457,0.15126759,214.53,213.9,2.0]
[1693576792869,0.15126759,214.51,213.9,2.0]
[1693576793665,0.15126759,214.5,213.9,2.0]
[1693576793964,0.15126759,214.51,213.9,2.0]
[1693576794565,0.15126759,214.5,213.9,2.0]
[1693576795864,0.15126759,214.51,213.9,2.0]
[1693576796964,0.15126759,214.52,213.9,2.0]
[1693576799869,0.15126759,214.53,213.9,2.0]
[1693576800569,0.15126759,214.52,213.9,2.0]
[1693576800763,0.15126759,214.47,213.9,2.0]
[1693576801269,0.15126759,214.46,213.9,2.0]
[1693576801484,0.15126759,214.45,213.9,2.0]
[1693576802469,0.15126759,214.44,213.9,2.0]
[1693576803170,0.15126759,214.45,213.9,2.0]
[1693576803362,0.15126759,214.5,213.9,2.0]
[1693576804269,0.15126759,214.51,213.9,2.0]
[1693576804871,0.15126759,214.5,213.9,2.0]
[1693576805270,0.15126759,214.51,213.9,2.0]
[1693576805869,0.15126759,214.5,213.9,2.0]
[1693576806670,0.15126759,214.49,213.9,2.0]
[1693576807171,0.15126759,214.45,213.9,2.0]
[1693576807371,0.15126759,214.44,213.9,2.0]
[1693576807871,0.15126759,214.45,213.9,2.0]
[1693576808272,2.52112651,214.56,213.9,2.0]
[1693576808273,0.15126759,214.5,213.9,2.0]
[1693576808771,0.15126759,214.51,213.9,2.0]
[1693576808971,0.15126759,214.49,213.9,2.0]
[1693576809770,0.15126759,214.45,213.9,2.0]
[1693576810171,0.5042253,214.48,214.45,1.84873241]
[1693576810667,0.5042253,214.47,214.45,1.84873241]
[1693576810969,0.5042253,214.49,214.45,1.84873241]
[1693576811673,0.5042253,214.5,214.45,1.84873241]
[1693576812268,0.5042253,214.55,214.45,1.84873241]
[1693576812672,2.52112651,214.63,214.45,1.84873241]
[1693576812673,0.5042253,214.56,214.45,1.84873241]
[1693576813368,0.5042253,214.55,214.45,1.84873241]
[1693576813771,0.5042253,214.56,214.45,1.84873241]
[1693576813972,0.5042253,214.57,214.45,1.84873241]
[1693576814173,0.5042253,214.56,214.45,1.84873241]
[1693576815070,0.5042253,214.58,214.45,1.84873241]
[1693576815679,0.5042253,214.59,214.45,1.84873241]
[1693576816475,0.5042253,214.6,214.45,1.84873241]
[1693576816875,0.5042253,214.62,214.45,1.84873241]
[1693576818070,0.5042253,214.64,214.45,1.84873241]
[1693576820377,0.5042253,214.63,214.45,1.84873241]
[1693576820979,0.5042253,214.58,214.45,1.84873241]
[1693576823073,0.5042253,214.59,214.45,1.84873241]
[1693576823277,0.5042253,214.58,214.45,1.84873241]
[1693576823981,0.5042253,214.59,214.45,1.84873241]
[1693576824182,0.5042253,214.58,214.45,1.84873241]
[1693576825784,1.0084506,214.61,214.45,1.84873241]
[1693576825785,0.5042253,214.59,214.45,1.84873241]
[1693576825985,0.5042253,214.58,214.45,1.84873241]
[1693576826779,0.5042253,214.59,214.45,1.84873241]
[1693576827688,0.5042253,214.58,214.45,1.84873241]
[1693576828085,0.5042253,214.59,214.45,1.84873241]
[1693576829790,0.5042253,214.6,214.45,1.84873241]
[1693576829990,2.52112651,214.68,214.45,1.84873241]
[1693576829991,0.5042253,214.59,214.45,1.84873241]
[1693576830190,0.5042253,214.6,214.45,1.84873241]
[1693576831592,0.5042253,214.59,214.45,1.84873241]
[1693576832091,0.5042253,214.58,214.45,1.84873241]
[1693576832286,1.0084506,214.61,214.45,1.84873241]
[1693576832287,0.5042253,214.59,214.45,1.84873241]
[1693576832787,0.5042253,214.6,214.45,1.84873241]
[1693576834091,0.5042253,214.61,214.45,1.84873241]
[1693576834288,0.5042253,214.62,214.45,1.84873241]
[1693576835592,0.5042253,214.63,214.45,1.84873241]
[1693576837391,0.5042253,214.62,214.45,1.84873241]
[1693576839589,0.5042253,214.61,214.45,1.84873241]
[1693576840494,0.5042253,214.6,214.45,1.84873241]
[1693576840694,0.5042253,214.59,214.45,1.84873241]
[1693576841190,0.5042253,214.58,214.45,1.84873241]
[1693576843890,0.5042253,214.57,214.45,1.84873241]
[1693576844098,0.5042253,214.56,214.45,1.84873241]
[1693576845791,0.5042253,214.55,214.45,1.84873241]
[1693576846997,0.5042253,214.54,214.45,1.84873241]
[1693576847900,0.5042253,214.55,214.45,1.84873241]
[1693576848097,0.5042253,214.54,214.45,1.84873241]
[1693576848801,0.5042253,214.55,214.45,1.84873241]
[1693576848996,1.0084506,214.57,214.45,1.84873241]
[1693576848997,0.5042253,214.54,214.45,1.84873241]
[1693576851001,0.5042253,214.53,214.45,1.84873241]
[1693576852802,0.5042253,214.54,214.45,1.84873241]
[1693576853003,1.0084506,214.57,214.45,1.84873241]
[1693576853004,0.5042253,214.48,214.45,0.21723426]
[1693576853203,0.5042253,214.47,214.45,0.21723426]
[1693576854303,0.5042253,214.46,214.45,0.21723426]
[1693576855999,1.0084506,214.48,214.45,0.21723426]
[1693576856405,1.0084506,214.47,214.45,0.21723426]
[1693576856705,0.43446852,214.44,212.18,1.71763651]
[1693576857007,0.94045631,214.44,212.18,1.71763651]
[1693576857299,0.43446852,214.44,212.18,1.71763651]
[1693576860005,0.43446852,214.44,212.17,1.71763651]
[1693576861104,0.94045631,214.44,212.17,1.71763651]